Cogmind - Beta 15 @@@ ROGUE MODE // 2025.10.03 @ 20:30:18 Player: Bikerider58 Result: Destroyed by G-73 Enforcer with Phase Gun Performance ------------- Evolutions (8) 4000 Regions Visited (20) 4000 Robots Destroyed (345) 1725 Value Destroyed (17647) 17647 Prototype IDs (63) 1260 Alien Tech Used (2) 400 Bonus (14813) 14813 TOTAL SCORE: 43845 Bonus ------- Triggered High Security 500 High Alert Combat Kills 6577 Follower Combat Kills 1636 Network Hubs Disabled 200 Met Zhirov 300 Built Enhanced Grunts 300 A7 Reached Mainframe 300 Met R17 at Cetus 500 Met R17 at Research 2000 Scanned by Researcher 500 Acquired SGEMP 2000 Cogmind --------- Core Integrity 0/1450 Matter 35/300 Energy 100/100 System Corruption 30% Temperature Cool (0) Movement Core (50) Location -2/Research Parts ------- > --- POWER (3) -------- (None) > --- PROPULSION (7) --- (None) > --- UTILITY (10) ----- (None) > --- WEAPON (3) ------- (None) > --- INVENTORY (5) ---- 2N-1CE's Frost Array Portable AFG (100) SGEMP Prototype Peak State ------------ > --- POWER ------------ Antimatter-Quantum Reactor > --- PROPULSION ------- Biometal Leg Enhanced Multireflex Exoskeleton Biometal-Myomer Exoskeleton > --- UTILITY ---------- Armored Scrap Engine Experimental Power Amplifier 2N-1CE's Frost Array Huge Storage Unit Advanced Energy Well Advanced Sensor Array Advanced Signal Interpreter Experimental Core Analyzer Graphene Brace > --- WEAPON ----------- Potential Cannon Vibroblade > --- INVENTORY -------- Micro Antimatter Reactor Cooled Antimatter Reactor Quantum Reactor Compact Battery Quantum Capacitor Transmission Jammer Experimental Thermal Shield System Mapper Transdimensional Reconstructor Heavy Dispersion Rifle Compact HERF Cannon Compact HERF Cannon Disintegrator Helical Railgun Heavy Flak Cannon Neutron Missile Launcher Plasma Cutter Multitool Portable AFG SGEMP Prototype [Rating: 203] Favorites ----------- Power Constructs Engine Reinforced Deuterium Engine Reactor Constructs Propulsion Constructs Treads Armored Treads Leg Constructs Wheel Subdweller Monowheel Flight Unit Field Propulsion Drive Utility Armored Scrap Engine Device Armored Scrap Engine Storage Large Storage Unit Processor Improved Signal Interpreter Hackware System Mapper Protection Centrium Medium Armor Plating Weapon Constructs Energy Gun Constructs Energy Cannon Potential Cannon Ballistic Gun Autogun Ballistic Cannon Omega Cannon Launcher Long-range Missile Launcher Special Weapon Plasma Cutter Impact Weapon Great Maul Slashing Weapon Phasing Sabre Piercing Weapon Enhanced Force Lance Build | -11 -10 -10 -10 -8 -8 -8 -6 -5 -5 -5 -5 -5 -4 -4 -4 -4 -3 -3 -3 -2 ------- Run | Yrd Mat Min Sub Mat Sto Rec Fac Fac Ext Cet Arc Hub Fac Upp Upp Zhi Pro Res Tes Res Slots Evolved 16 | . . . . 4 . . 4 2 . . . . 2 . . . . 2 . 2 Power 2 | . . . . . . . 1 1 . . . . . . . . . . . . Propulsion 5 | . . . . 1 . . . 1 . . . . 1 . . . . 2 . . Utility 8 | . . . . 2 . . 3 . . . . . 1 . . . . . . 2 Weapon 1 | . . . . 1 . . . . . . . . . . . . . . . . Parts Attached 172 | 7 10 6 16 25 21 2 8 3 8 5 1 4 3 2 . 2 10 5 19 15 Power 11 | 1 1 . 3 3 . . . . . . . 1 1 . . . . . 1 . Engine 8 | 1 1 . 3 3 . . . . . . . . . . . . . . . . Core . | . . . . . . . . . . . . . . . . . . . . . Reactor 3 | . . . . . . . . . . . . 1 1 . . . . . 1 . Propulsion 26 | 2 . 2 5 7 5 . . . 1 . . . . . . . . 1 2 1 Treads 7 | . . . . 5 2 . . . . . . . . . . . . . . . Leg 12 | 2 . 2 1 . 3 . . . . . . . . . . . . 1 2 1 Wheel 6 | . . . 4 2 . . . . . . . . . . . . . . . . Hover . | . . . . . . . . . . . . . . . . . . . . . Flight 1 | . . . . . . . . . 1 . . . . . . . . . . . Utility 78 | 2 2 3 . 7 6 1 6 3 5 5 1 2 2 2 . 2 8 2 9 10 Device 43 | 1 1 1 . 3 1 1 4 2 1 2 1 2 1 2 . 1 5 2 5 7 Storage 6 | 1 1 . . 1 . . . . . 1 . . . . . . 1 . 1 . Processor 7 | . . . . 1 2 . . . . . . . 1 . . . 1 . 2 . Hackware 4 | . . . . . . . . . 3 . . . . . . . . . . 1 Protection 18 | . . 2 . 2 3 . 2 1 1 2 . . . . . 1 1 . 1 2 Artifact . | . . . . . . . . . . . . . . . . . . . . . Weapon 57 | 2 7 1 8 8 10 1 2 . 2 . . 1 . . . . 2 2 7 4 Energy Gun 11 | 1 2 . 1 2 3 . . . . . . . . . . . 1 . 1 . Energy Cannon 5 | . . . 1 . . . . . . . . . . . . . . 1 2 1 Ballistic Gun 23 | 1 5 . 5 5 5 . . . . . . 1 . . . . . . 1 . Ballistic Cannon 2 | . . . . . . . . . . . . . . . . . 1 . 1 . Launcher 7 | . . 1 . . 1 1 . . 1 . . . . . . . . . 1 2 Special Weapon 2 | . . . 1 . . . 1 . . . . . . . . . . . . . Impact Weapon 1 | . . . . . 1 . . . . . . . . . . . . . . . Slashing Weapon 5 | . . . . 1 . . 1 . 1 . . . . . . . . . 1 1 Piercing Weapon 1 | . . . . . . . . . . . . . . . . . . 1 . . Special Melee Weapon . | . . . . . . . . . . . . . . . . . . . . . Unidentified Prototypes 39 | . . . . 3 4 1 1 . . 2 . 2 . . . 3 5 2 11 5 Parts Lost 42 | . 1 . 8 6 1 . 2 . 1 1 . 1 . 1 . . 1 . 7 12 Power 2 | . . . 1 . . . . . . . . 1 . . . . . . . . Propulsion 10 | . . . 3 2 . . . . . . . . . . . . . . 2 3 Utility 22 | . 1 . 2 1 1 . 2 . 1 1 . . . 1 . . 1 . 4 7 Weapon 8 | . . . 2 3 . . . . . . . . . . . . . . 1 2 Highest Loss Streak 8 | . 1 . 2 2 1 . 1 . 1 1 . 1 . 1 . . 1 . 3 8 To Critical Strikes . | . . . . . . . . . . . . . . . . . . . . . Average Backups 13 | 1 6 9 9 11 14 13 14 15 15 14 15 14 14 14 14 15 15 19 17 16 Power 1 | . . 1 1 1 1 . . 1 1 . 1 . . 1 1 1 . . . 2 Propulsion 1 | . . . . . 2 3 3 2 1 1 1 . . . . . . 2 1 . Utility 4 | . . . 1 2 2 2 5 7 7 7 7 8 8 7 7 7 6 8 8 6 Weapon 4 | 1 4 6 5 5 6 4 3 3 3 3 4 4 4 4 4 4 4 5 3 5 Tool/Special . | . . . . . . . . . . . . . . . . . . . . . Unused Backups 54 | . 2 1 . 5 8 5 1 2 2 3 . . . . 1 1 4 3 7 9 Power 7 | . . . . 2 . 1 . . . . . . . . . . . . . 4 Propulsion 10 | . . 1 . . 2 2 1 . 1 . . . . . . . . 2 1 . Utility 17 | . . . . 1 2 1 . 2 1 1 . . . . 1 1 2 . 3 2 Weapon 20 | . 2 . . 2 4 1 . . . 2 . . . . . . 2 1 3 3 Tool/Special . | . . . . . . . . . . . . . . . . . . . . . Average Slot Usage (%) 74 | . 99 100 97 96 99 79 68 58 57 58 58 61 63 62 63 62 62 61 60 55 Engine 5 | . 14 14 13 8 9 7 9 . . . . . . . . 1 5 4 3 . Core 1 | . . . . . . 1 . 5 5 5 3 . . 2 5 3 . . . . Reactor 2 | . . . . . . . . . . . 1 8 10 7 5 5 4 4 3 3 Treads 2 | . . . . 21 24 2 . . . . . . . . . . . . . . Leg 9 | . 28 28 16 1 2 15 5 . . . . . 4 5 5 5 5 9 9 10 Wheel 1 | . . . 10 3 . . . . . . . . . . . . . . . . Device 14 | . 13 12 10 8 6 7 21 15 16 20 17 22 20 20 21 20 19 17 14 21 Storage 7 | . 14 14 14 9 9 9 6 5 5 5 5 5 5 5 5 5 5 4 4 3 Processor 5 | . . . . 8 17 12 6 5 4 . . . 4 5 5 5 7 9 9 2 Protection 3 | . . 1 2 7 3 1 3 6 4 7 11 6 5 5 5 5 4 1 3 2 Energy Gun 1 | . 16 . . 1 . . . . . . . . . . . . 1 . . . Energy Cannon 1 | . . . 4 1 . . . 3 2 1 . . . . . . 2 4 1 3 Ballistic Gun 9 | . 11 26 22 20 25 19 4 . . . . . . . . . . . . . Ballistic Cannon 1 | . . . . . . 1 6 1 3 3 5 5 5 5 5 5 3 . 2 . Slashing Weapon 2 | . . . . 3 . . . 5 4 3 5 4 4 4 4 5 2 . 3 3 Peak Build Rating 203 | 7 13 13 19 33 39 52 65 71 101 116 113 119 123 131 131 134 149 168 192 203 Average Rating 89 | 4 10 11 13 26 35 43 57 68 84 107 112 114 121 126 128 129 136 163 179 187 On Entrance 82 | . 7 13 10 19 33 38 46 65 71 97 113 113 115 122 127 129 131 146 163 164 Naked Turns 18 | . . . . . . . . . . . . . . . . . . . . 18 Heaviest Build 207 | 15 24 26 27 49 50 52 60 55 67 75 75 91 87 91 91 93 115 120 154 207 Greatest Support 205 | 20 20 20 30 60 62 36 55 55 55 40 40 40 91 120 98 98 145 195 195 205 Greatest Overweight (x) 3 | . 1 1 2 1 3 2 2 . 1 1 1 2 2 . . . . . . 2 Average Overweight (x) . | . . 1 . . . . . . . 1 1 1 . . . . . . . . Largest Inventory Capacity 25 | 8 10 10 10 15 15 15 15 15 15 15 15 15 15 15 15 15 20 20 25 25 Average Capacity 15 | 7 9 10 10 13 15 15 15 15 15 15 15 15 15 15 15 15 16 20 20 22 Most Carried 25 | 3 10 10 10 15 15 15 15 15 15 15 15 15 15 15 15 15 20 20 25 25 Average Carried 14 | 1 6 9 9 11 14 13 14 15 14 14 15 14 14 14 14 14 15 19 20 21 Final Capacity 25 | 8 10 10 10 15 15 15 15 15 15 15 15 15 15 15 15 15 20 20 25 5 Final Carried 25 | 1 10 10 9 15 15 15 15 15 15 15 15 15 15 14 15 15 20 20 25 4 Scrap Engine Consumption 189 | . . . . . . 50 23 7 14 9 6 3 3 6 1 2 9 10 25 21 Constructs Created 6 | . . . . . . 3 . . . . . . . . . . . . 2 1 Constructs Modified 65 | . . . . . . 17 6 3 10 2 1 . 4 4 . 1 2 . 6 9 Class Distribution -------------------- 33% | Mutant 31% | Construct 10% | Commander-Construct 8% | Scavenger-Mutant 4% | Skirmisher Dominant Class ---------------- Mutant | -10/Materials Mutant | -10/Mines Mutant | -10/Subcaves Scavenger-Mutant | -8/Materials Skirmisher | -8/Storage Commander-Construct | -8/Recycling Construct | -6/Factory Construct | -5/Factory Commander-Construct | -5/Extension Scavenger-Construct | -5/Cetus Scavenger-Construct | -5/Archives Commander-Construct | -5/Hub_04(d) Construct | -4/Factory Construct | -4/Upper Caves Construct | -4/Upper Caves Construct | -4/Zhirov Construct | -3/Proximity Caves Construct | -3/Research Mutant | -3/Testing Mutant | -2/Research Resources | -11 -10 -10 -10 -8 -8 -8 -6 -5 -5 -5 -5 -5 -4 -4 -4 -4 -3 -3 -3 -2 ----------- Run | Yrd Mat Min Sub Mat Sto Rec Fac Fac Ext Cet Arc Hub Fac Upp Upp Zhi Pro Res Tes Res Matter Collected 8578 | 126 281 359 693 780 651 251 334 52 208 123 28 176 138 332 110 50 381 190 2513 802 Remotely 324 | . . . . . . . . . . . . . . . . . . . . 324 Salvage Created 15396 | 102 377 89 520 936 1158 466 705 276 1441 70 130 479 253 843 382 448 923 266 2848 2684 Parts 650 | 8 24 9 39 56 49 17 40 9 57 2 7 22 14 30 15 7 40 14 118 73 Haulers Intercepted 14 | . 1 . . 2 3 . 1 . 1 . . 2 . . . . 1 2 . 1 Recyclers Shooed 4 | . . . . 1 1 . . . 2 . . . . . . . . . . . Parts Field Recycled . | . . . . . . . . . . . . . . . . . . . . . Retrieved Matter . | . . . . . . . . . . . . . . . . . . . . . Parts Self-Destructed 69 | . . . 2 . . . . . . . . . . 28 12 4 23 . . . Prevented . | . . . . . . . . . . . . . . . . . . . . . Kills | -11 -10 -10 -10 -8 -8 -8 -6 -5 -5 -5 -5 -5 -4 -4 -4 -4 -3 -3 -3 -2 ------- Run | Yrd Mat Min Sub Mat Sto Rec Fac Fac Ext Cet Arc Hub Fac Upp Upp Zhi Pro Res Tes Res Combat Hostiles Destroyed 280 | . 9 10 14 14 15 4 14 1 19 1 . 8 7 15 9 . 10 1 68 61 Melee 24 | . . . . . 4 . . . 2 . . . . . . . . . 15 3 Guns 61 | . 9 6 12 14 8 4 4 . . . . . . . . . . 1 3 . Cannons 96 | . . . 2 . . . 10 1 13 1 . 3 3 10 1 . 7 . 28 17 AOE 89 | . . 4 . . . . . . 4 . . 5 4 5 8 . 3 . 20 36 Classes Destroyed 28 | 2 5 1 1 6 . 1 1 . 2 . . 1 . . . . 4 . 3 1 Worker 6 | . . . . 1 2 . 1 . . . . . . . . . . . 2 . Builder 5 | . . . . 1 1 . . . 2 . . . . . . . . . 1 . Tunneler 6 | 2 . 1 . . . 1 . . 1 . . . . . . . . . . 1 Hauler 14 | . 1 . . 2 3 . 1 . 1 . . 2 . . . . 1 2 . 1 Recycler 9 | 1 . . . . 1 1 . 2 2 . . . . . . . . . 1 1 Mechanic 4 | . . . . 1 . . . . . . . . . . . . . . 1 2 Operator 15 | . 1 . . 2 1 . 2 . 1 . 4 . . . . . . . 3 1 Drone 1 | . . . . . . . . . . . . . . . . . 1 . . . Watcher 11 | . 2 . . 1 2 . . . 2 . . 2 . . . . . . 1 1 Swarmer 46 | . 5 2 . . . . 4 . 2 . . 5 4 5 8 . . . 11 . Saboteur 5 | . . . . . . . . . . . . . . . . . 1 . . 4 Grunt 91 | . 4 . . 9 9 . 8 . 7 . . 1 2 5 . . 1 . 21 24 Brawler 11 | . . . . . . . . . 1 . . . . 1 . . . . 3 6 Duelist 12 | . . . . 1 1 . . . 1 . . . . 2 . . . . 1 6 Protector 7 | . . . . . . 1 . . . . . . . . . . 1 . 1 4 Sentry 20 | . . . . 3 5 . 1 . 5 . . 1 1 1 1 . . . 1 1 Specialist 9 | . . . . . . . . . . . . . . . . . 1 . 8 . Hunter 12 | . . . . . . . . . . . . 1 . . . . 2 . 1 8 Programmer 28 | . . . . . . . 1 1 . . . . . . . . 3 1 15 7 Heavy 2 | . . . . 1 . . . . . . . . . . . . . . . 1 Behemoth 3 | . . . . . . . . . 2 . . . . 1 . . . . . . Cetus Guard 1 | . . . . . . . . . . 1 . . . . . . . . . . Investigator 1 | . . . . . . . . . . . . . . . . . . . . 1 Striker 2 | . . . . . . . . . . . . . . . . . . . 2 . Alpha 7 2 | . . . . . . . . . . . . . . . . . . . 2 . Protovariant P 1 | . . . . . . . . . . . . . . . . . . . 1 . Subdweller 18 | . . . 14 . . 4 . . . . . . . . . . . . . . Packrat 1 | . . . . . . . . . . . . . . . . . 1 . . . Samaritan 3 | . . . . . . . . . . . . . . . . . 3 . . . Assembled 8 | . . 8 . . . . . . . . . . . . . . . . . . Thug 1 | . . . . . . . . . 1 . . . . . . . . . . . Butcher 1 | . . . . . . . . . 1 . . . . . . . . . . . Knight 1 | . . . . . . . . . . . . . . . . . . . 1 . Best Kill Streak 40 | 3 5 6 2 5 8 2 5 3 6 1 3 5 4 5 4 . 5 1 10 40 Combat Bots Only 36 | . 5 6 2 3 6 2 4 1 5 1 . 5 4 5 4 . 5 1 10 36 Max Kills in Single Turn 5 | 1 1 2 1 2 2 1 2 1 5 1 1 3 2 3 3 . 1 1 4 5 Gunslinging 1 | . . . . 1 . . . . . . . . . . . . . . . . Exploded 4 | . . 2 . . . . . . 3 . . 3 2 3 3 . 1 . 3 4 Melee 2 | . . . . . 1 . . . 1 . . . . . . . . . 2 1 Uniques/NPCs Destroyed . | . . . . . . . . . . . . . . . . . . . . . Combat | -11 -10 -10 -10 -8 -8 -8 -6 -5 -5 -5 -5 -5 -4 -4 -4 -4 -3 -3 -3 -2 -------- Run | Yrd Mat Min Sub Mat Sto Rec Fac Fac Ext Cet Arc Hub Fac Upp Upp Zhi Pro Res Tes Res Hostile Shots Fired 1810 | . 41 36 67 66 46 14 45 6 70 34 17 47 29 120 13 . 83 12 523 541 Missed 565 | . 17 11 13 11 10 6 14 1 19 11 7 10 7 42 1 . 30 5 186 164 Deflected 18 | . . . . . . . . . . . . . . . . . . . 18 . Hits 1245 | . 24 25 54 55 36 8 31 5 51 23 10 37 22 78 12 . 53 7 337 377 Melee 86 | . . 1 . . 4 . . . 3 . . . . . . . . . 20 58 Projectile 1159 | . 24 24 54 55 32 8 31 5 48 23 10 37 22 78 12 . 53 7 317 319 AOE 3 | . . . . . . . . . . . . . . . . . . . 1 2 Critical Strikes 85 | . . 1 2 2 1 . . . 2 5 1 1 1 2 . . 4 1 31 31 Actively Blocked 25 | . . . . . . . . . . . . . . . . . . . 1 24 Part Disruptions 3 | . . . . . . . . . . . . . . . . . . . 2 1 Damage Taken 21489 | . 220 356 1188 1085 631 227 609 81 788 470 258 1028 452 903 93 . 595 84 5813 6608 Core 2634 | . 15 27 195 97 . 47 25 . 44 42 . 88 60 83 12 . 28 8 502 1361 Absorbed by Shields 7913 | . . . . . . . . 22 285 101 . . . 936 99 . 475 90 2570 3335 Ignored by Resistances 628 | . . . . . . . . . 75 91 . . . . . . . . 101 361 Regen/Repaired (Parts) 5465 | . . . . 45 234 37 128 104 310 304 156 . 869 272 53 10 518 . 623 1802 Core Remaining (%) 71 | 100 . . 5 . . 73 97 . . . . 82 . . . . 84 . 60 . Volleys Fired 762 | 5 34 25 74 52 32 23 34 6 44 18 6 32 12 93 11 . 37 12 121 91 Largest 3 | 2 2 2 2 3 3 3 2 1 2 1 1 1 2 2 2 . 2 2 3 2 Hottest 245 | 70 90 46 104 133 84 78 72 42 141 141 141 141 141 125 125 . 162 162 245 200 Shots Fired 1102 | 10 68 47 122 146 82 46 63 6 46 18 6 32 13 94 12 . 45 13 137 96 Gun 536 | 10 68 44 107 137 82 38 29 . 1 . . . . . . . 2 1 13 4 Cannon 514 | . . . 14 9 . 7 34 6 43 18 6 30 9 91 8 . 38 12 113 76 Launcher 51 | . . 3 . . . 1 . . 2 . . 2 4 3 4 . 5 . 11 16 Special 1 | . . . 1 . . . . . . . . . . . . . . . . . Kinetic 817 | 5 28 44 100 131 82 43 63 . 36 18 6 30 9 91 8 . 33 . 81 9 Thermal 188 | 5 4 . 22 11 . 2 . 6 8 . . . . . . . 7 13 39 71 Explosive 51 | . . 3 . . . 1 . . 2 . . 2 4 3 4 . 5 . 11 16 Electromagnetic 46 | . 36 . . 4 . . . . . . . . . . . . . . 6 . Robot Hit Streak 26 | 5 5 8 15 12 17 14 13 13 17 3 5 4 14 19 7 . 8 4 26 5 Robot Miss Streak 9 | 1 5 9 2 3 5 3 5 4 4 6 1 4 . 4 . . 7 2 4 6 Penetration Max 1 | . . . . . 1 . 1 . 1 . . 1 . 1 . . . . 1 . Secondary Targets 3 | . . . . 3 . . . . . . . . . . . . . . . . Max Gunslinging Chain 1 | . . . . 1 . . . . . . . . . . . . . . . . Capacitor 55 | . . . . . . . . . . . . . . . . . . . . 55 Shots Hit Robots 856 | 7 44 21 80 106 64 29 55 7 59 9 13 16 10 46 8 8 34 8 169 63 Core Hits 600 | 4 22 15 30 43 25 21 52 7 48 4 5 14 9 22 10 3 23 5 106 132 Critical Kills 20 | . . . 1 2 1 . . . . 1 . 2 1 1 . . 2 1 4 4 Critical Parts Destroyed 27 | . . . . . 5 . . . . 4 . 5 1 7 1 . 2 . 2 . Critical Strikes 89 | . 2 . 2 2 6 . . . 3 5 2 7 3 9 1 . 4 1 36 6 Burn 2 | . 2 . . . . . . . . . . . . . . . . . . . Meltdown 6 | . . . . . . . . . . . . . . . . . . . 2 4 Destroy 41 | . . . 2 2 . . . . . 5 2 7 3 9 1 . 4 1 5 . Blast 15 | . . . . . . . . . . . . . . . . . . . 15 . Smash 6 | . . . . . 6 . . . . . . . . . . . . . . . Sever 19 | . . . . . . . . . 3 . . . . . . . . . 14 2 Melee Attacks 238 | . . . . 10 22 . 1 1 26 1 11 1 . 3 3 8 7 5 119 20 Impact 22 | . . . . . 22 . . . . . . . . . . . . . . . Slashing 208 | . . . . 10 . . 1 1 26 1 11 1 . 3 3 8 7 . 116 20 Piercing 8 | . . . . . . . . . . . . . . . . . . 5 3 . Sneak Attacks 36 | . . . . 1 4 . . 1 9 . 7 . . . . . 5 2 6 1 Combat Hostiles 1 | . . . . . . . . . 1 . . . . . . . . . . . Follow-up Attacks . | . . . . . . . . . . . . . . . . . . . . . Martial Strikes 47 | . . . . . . . . . . . . . . . . . . . 47 . Damage Inflicted 64262 | 92 597 446 1546 2077 2104 842 1530 522 4200 565 895 1552 1196 3351 1131 767 2793 577 17290 20189 Guns 6668 | 92 573 263 1354 1784 1101 396 580 . 14 . . . . . . . 22 50 335 104 Cannons 25716 | . . . 192 184 . 154 833 460 2319 565 136 1105 602 2912 258 . 1435 248 8740 5573 Explosions 22495 | . 24 180 . . . 292 117 . 665 . . 447 594 439 656 . 702 . 4493 13886 Melee 9340 | . . . . 102 981 . . 62 1191 . 759 . . . 217 767 634 279 3722 626 Ramming 43 | . . 3 . 7 22 . . . 11 . . . . . . . . . . . Kinetic 22990 | 43 202 263 1313 1683 1101 518 1413 . 1940 565 136 1105 602 2912 258 . 1371 . 7408 157 Thermal 17143 | 49 61 . 233 227 . 282 117 460 393 . . . . . . . 86 298 2934 12003 Explosive 14186 | . . 180 . . . 42 . . 665 . . 447 594 439 656 . 702 . 3086 7375 Electromagnetic 560 | . 334 . . 58 . . . . . . . . . . . . . . 140 28 Impact 981 | . . . . . 981 . . . . . . . . . . . . . . . Slashing 8080 | . . . . 102 . . . 62 1191 . 759 . . . 217 767 634 . 3722 626 Piercing 279 | . . . . . . . . . . . . . . . . . . 279 . . Highest Corruption 38 | . . . . . . . 1 1 6 6 6 1 . . . . 5 . 38 30 Average Corruption 9 | . . . . . . . 1 1 1 6 4 1 . . . . 4 . 23 7 Corruption Purged 6 | . . . . . . . . . . . 6 . . . . . . . . . Corruption Blocked . | . . . . . . . . . . . . . . . . . . . . . Effects 188 | . . . . . . . 3 1 13 13 6 2 . . . . 19 . 95 36 Message Errors 34 | . . . . . . . 1 . 1 3 2 1 . . . . 3 . 16 7 Matter Fused 49 | . . . . . . . . 1 2 3 1 . . . . . 2 . 29 11 Heat Flow Errors 27 | . . . . . . . 1 . 6 2 1 . . . . . 5 . 7 5 Energy Discharges 18 | . . . . . . . . . 1 2 . . . . . . . . 13 2 Parts Rejected 4 | . . . . . . . . . . . . 1 . . . . . . 2 1 Parts Fused 4 | . . . . . . . . . . . . . . . . . . . 4 . Data Loss (minor) 27 | . . . . . . . 1 . 3 2 . . . . . . 4 . 13 4 Data Loss (major) 9 | . . . . . . . . . . . 2 . . . . . 2 . 2 3 Misfires 4 | . . . . . . . . . . . . . . . . . 1 . 1 2 Alerts 6 | . . . . . . . . . . 1 . . . . . . 2 . 3 . Weapon Failures 6 | . . . . . . . . . . . . . . . . . . . 5 1 Overload Shots . | . . . . . . . . . . . . . . . . . . . . . Overflow Damage 6061 | . . 5 . 15 515 25 49 23 419 . 194 51 62 110 134 155 398 . 1812 2094 Projectiles 3246 | . . . . 15 . 2 . 23 114 . . 32 6 110 . . 120 . 1374 1450 Explosions 1004 | . . 5 . . . 23 49 . 19 . . 19 56 . 32 . . . 178 623 Melee 1811 | . . . . . 515 . . . 286 . 194 . . . 102 155 278 . 260 21 Knockbacks 80 | . . . . 1 2 2 13 . 14 . . 5 1 14 . . 10 . 18 . Impact 3 | . . . . 1 2 . . . . . . . . . . . . . . . Kinetic 73 | . . . . . . 2 13 . 13 . . 5 1 13 . . 9 . 17 . Secondary 4 | . . . . . . . . . 1 . . . . 1 . . 1 . 1 . Self-Inflicted Damage 1293 | . . 59 . . . 73 112 . 5 . . 88 . . . . 70 . 363 523 Shots 25 | . . 2 . . . 2 2 . . . . 2 . . . . 2 . 7 8 Rammed 8 | . . . . 2 5 . . . 1 . . . . . . . . . . . Targets Rammed 11 | . . 3 . 2 5 . . . 1 . . . . . . . . . . . Kicked 3 | . . 3 . . . . . . . . . . . . . . . . . . Crushed . | . . . . . . . . . . . . . . . . . . . . . Highest Temperature 383 | 18 123 45 69 262 302 168 217 8 317 242 130 248 62 383 64 . 239 . 199 164 Average Temperature 63 | 9 33 16 33 87 56 63 45 4 103 60 63 89 25 70 25 . 60 . 37 74 Received Heat Transfer 2656 | . 69 98 153 423 243 27 144 . 173 46 36 54 93 315 . . 42 9 379 352 Effects 6 | . . . . . . . . . . . . . . 6 . . . . . . Interference 4 | . . . . . . . . . . . . . . 4 . . . . . . Matter Decay 2 | . . . . . . . . . . . . . . 2 . . . . . . Siege Activations . | . . . . . . . . . . . . . . . . . . . . . Martial Activations 19 | . . . . . . . . . . . . . . . . . . . 16 3 Total Turns 839 | . . . . . . . . . . . . . . . . . . . 823 16 Longest Duration 289 | . . . . . . . . . . . . . . . . . . . 289 11 Shielding Activations . | . . . . . . . . . . . . . . . . . . . . . Robots Disrupted 2 | . . . . . . . . . . . . . . . . . . . 2 . Combat Hostiles 2 | . . . . . . . . . . . . . . . . . . . 2 . Robots Corrupted 5 | . . . . . 5 . . . . . . . . . . . . . . . Combat Hostiles 3 | . . . . . 3 . . . . . . . . . . . . . . . Parts Fried 9 | . . . . . 8 . . . . . . . . . . . . . 1 . Impact Corruptions 14 | . . . . . 13 . . . 1 . . . . . . . . . . . Robots Melted 7 | . . . . . . . . . . . . . . . . . . . 2 5 Combat Hostiles 7 | . . . . . . . . . . . . . . . . . . . 2 5 Parts Melted 15 | . 1 . . . . 1 1 1 . . . . . . . . . . 6 5 Heat Transferred 14291 | 148 309 . 309 309 . 350 150 777 259 . . . . . . . 74 185 1861 9560 Parts Sabotaged 1 | . . . . . . . . . . . . . . . . . . . 1 . Parts Stolen . | . . . . . . . . . . . . . . . . . . . . . Parts Stripped . | . . . . . . . . . . . . . . . . . . . . . Power Chain Reactions 7 | . 1 . . . . 1 3 . . . . . . . . . . . 2 . Alert | -11 -10 -10 -10 -8 -8 -8 -6 -5 -5 -5 -5 -5 -4 -4 -4 -4 -3 -3 -3 -2 ------- Run | Yrd Mat Min Sub Mat Sto Rec Fac Fac Ext Cet Arc Hub Fac Upp Upp Zhi Pro Res Tes Res Maximum Alert Level 5 | . . . . . . . 2 . 2 2 1 3 2 . . . . 3 5 5 Low Security (%) 50 | 100 100 100 . 100 100 100 . 100 57 . 1 19 . . . . . . . . Level 1 15 | . . . . . . . 59 . 35 24 98 21 . . . . . . 40 . Level 2 9 | . . . . . . . 39 . 7 75 . 16 100 . . . . 8 12 . Level 3 13 | . . . . . . . . . . . . 43 . . . . . 91 37 15 Level 4 5 | . . . . . . . . . . . . . . . . . . . 8 42 Level 5 . | . . . . . . . . . . . . . . . . . . . 1 . High Security 4 | . . . . . . . . . . . . . . . . . . . . 41 Max Security . | . . . . . . . . . . . . . . . . . . . . . Peak Influence 3125 | 5 109 42 . 120 186 154 473 177 673 485 315 985 645 . . . . 912 1777 3125 Initial 993 | . 3 . . . 39 66 458 177 74 368 152 92 478 . . . . 900 377 993 Average 431 | 2 25 2 . 41 104 37 345 143 224 422 272 539 481 . . . . 797 662 1706 Influence Increases 12774 | 15 303 78 . 505 573 328 856 85 1193 384 233 1173 297 355 205 15 225 997 2314 2640 Destroy 0b10 Robot/C 5540 | . 180 40 . 280 300 20 280 20 540 160 80 300 140 300 180 . 160 20 1380 1160 Destroy 0b10 Robot/NC 505 | 15 20 5 . 40 50 40 20 10 50 10 20 60 . . 5 15 30 10 50 55 Destroy Leader 872 | . 36 10 . 86 80 . 52 10 74 . . 64 30 40 20 . 20 14 162 174 Allied During Kill 845 | . . . . . . 27 . . 312 159 100 232 . . . . . . 15 . Successful Hack 239 | . 19 . . 13 49 12 23 . 63 . . 20 . . . . . 24 16 . Select Force Hacks 360 | . 30 . . 60 . 210 30 30 . . . . . . . . . . . . Disable Machine 525 | . . . . . 75 . . . 30 15 15 105 . . . . . 15 165 105 Destroy Structure 2228 | . 3 23 . 11 4 19 21 . 64 40 18 392 82 . . . . 14 496 1041 Advance Influence 1300 | . . . . . . . 400 . . . . . . . . . . 900 . . Partial Spotted 30 | . . . . . . . . 15 . . . . 15 . . . . . . . Lose Combat Pursuer 330 | . 15 . . 15 15 . 30 . 60 . . . 30 15 . . 15 . 30 105 Influence Decreases 9659 | 10 306 79 1 412 496 359 633 295 686 663 348 461 629 720 300 200 225 326 1218 1292 Entered New Map 3245 | . 2 2 1 . 54 104 81 185 78 291 228 173 499 240 54 185 . . 294 774 Time Decay 5354 | 10 294 77 . 352 432 255 362 110 478 222 100 198 130 470 246 15 215 326 664 398 Search Patrol Dispatched 300 | . . . . . . . 150 . . . . . . . . . . . 150 . Lost Part 340 | . 10 . . 60 10 . 20 . 10 10 . 10 . 10 . . 10 . 70 120 Lost Ally 420 | . . . . . . . 20 . 120 140 20 80 . . . . . . 40 . Squads Dispatched 72 | . 4 . . 4 . . 4 1 2 . . 7 5 . . . . 3 17 25 Investigation 12 | . 2 . . 3 . . 1 1 1 . . . 2 . . . . 1 1 . Extermination 8 | . . . . . . . 1 . . . . . . . . . . . 6 1 Reinforcement 16 | . 2 . . 1 . . 2 . 1 . . 3 1 . . . . 2 2 2 Assault 33 | . . . . . . . . . . . . 4 2 . . . . . 5 22 Garrison 3 | . . . . . . . . . . . . . . . . . . . 3 . Intercept . | . . . . . . . . . . . . . . . . . . . . . Searches Triggered 2 | . . . . . . . 1 . . . . . . . . . . . 1 . Construction Impeded 2 | . . . . . . . . . . . . 2 . . . . . . . . Haulers Reinforced 2 | . . . . . . . . . . . . 1 . . . . . 1 . . Active Scanning Responses . | . . . . . . . . . . . . . . . . . . . . . Cargo Convoy Interrupts . | . . . . . . . . . . . . . . . . . . . . . Stealth | -11 -10 -10 -10 -8 -8 -8 -6 -5 -5 -5 -5 -5 -4 -4 -4 -4 -3 -3 -3 -2 --------- Run | Yrd Mat Min Sub Mat Sto Rec Fac Fac Ext Cet Arc Hub Fac Upp Upp Zhi Pro Res Tes Res Distress Signals 27 | . . . . 2 . . 1 . 3 2 . 2 1 . . . 1 5 8 2 Communications Jammed 44 | . . . . . . . . . . . . . . . . . . . . 44 Distress Signals 44 | . . . . . . . . . . . . . . . . . . . . 44 Times Spotted 479 | . 22 13 17 22 18 7 19 6 33 11 11 26 8 18 6 . 19 11 90 122 Peak Tracking Total 28 | . 5 3 2 4 3 2 4 3 11 5 2 5 6 5 4 . 7 6 13 28 Tactical Retreats 18 | . 1 1 2 1 1 . 1 1 1 . . . 2 1 . . 1 . 2 3 Traps | -11 -10 -10 -10 -8 -8 -8 -6 -5 -5 -5 -5 -5 -4 -4 -4 -4 -3 -3 -3 -2 ------- Run | Yrd Mat Min Sub Mat Sto Rec Fac Fac Ext Cet Arc Hub Fac Upp Upp Zhi Pro Res Tes Res Traps Triggered 9 | . 1 . 1 . . . . . 2 . . . . . . . . . 2 3 Indirectly . | . . . . . . . . . . . . . . . . . . . . . Trap Hack Attempts . | . . . . . . . . . . . . . . . . . . . . . Triggered . | . . . . . . . . . . . . . . . . . . . . . Disarmed . | . . . . . . . . . . . . . . . . . . . . . Reprogrammed . | . . . . . . . . . . . . . . . . . . . . . Reused . | . . . . . . . . . . . . . . . . . . . . . Traps Extracted . | . . . . . . . . . . . . . . . . . . . . . Installed . | . . . . . . . . . . . . . . . . . . . . . Triggered . | . . . . . . . . . . . . . . . . . . . . . Machines | -11 -10 -10 -10 -8 -8 -8 -6 -5 -5 -5 -5 -5 -4 -4 -4 -4 -3 -3 -3 -2 ---------- Run | Yrd Mat Min Sub Mat Sto Rec Fac Fac Ext Cet Arc Hub Fac Upp Upp Zhi Pro Res Tes Res Machines Disabled 42 | . . . . . 5 . . . 6 3 1 7 . 1 . . . 1 11 7 Max in Single Turn 2 | . . . . . 1 . . . 2 1 . 1 . 1 . . . 1 2 2 Garrison Access 2 | . . . . . 1 . . . . . . . . . . . . . 1 . Network Hub 1 | . . . . . . . . . . . . 1 . . . . . . . . Machines Repaired . | . . . . . . . . . . . . . . . . . . . . . Machines Dismantled 1 | . . . . . . . . . . 1 . . . . . . . . . . Machines Sabotaged . | . . . . . . . . . . . . . . . . . . . . . Overloaded Fab Kills . | . . . . . . . . . . . . . . . . . . . . . Hacking | -11 -10 -10 -10 -8 -8 -8 -6 -5 -5 -5 -5 -5 -4 -4 -4 -4 -3 -3 -3 -2 --------- Run | Yrd Mat Min Sub Mat Sto Rec Fac Fac Ext Cet Arc Hub Fac Upp Upp Zhi Pro Res Tes Res Machines Accessed 88 | . 8 . 1 8 10 12 4 3 11 1 . 3 2 1 2 4 . 5 9 4 Terminals 52 | . 7 . . 5 7 4 3 1 11 1 . 3 1 . . . . 2 5 2 Fabricators 2 | . . . . . . . . . . . . . . . . . . . 1 1 Repair Stations 8 | . . . . 1 2 . . . . . . . 1 . . . . 2 2 . Recycling Units 10 | . 1 . . 1 . 7 . 1 . . . . . . . . . . . . Scanalyzers 4 | . . . . 1 . . 1 1 . . . . . . . . . . . 1 Garrison Access 3 | . . . . . 1 . . . . . . . . . . . . 1 1 . Total Hacks 234 | . 17 . 3 18 33 31 10 4 36 1 . 10 7 1 3 17 . 9 24 10 Successful 121 | . 8 . 3 9 19 19 7 2 22 . . 3 1 1 3 17 . 1 4 2 Failed 112 | . 9 . . 9 14 12 3 2 13 1 . 7 6 . . . . 8 20 8 Catastrophic 25 | . 1 . . 4 . . 2 . 3 1 . 2 1 . . . . 4 7 . Database Lockouts 1 | . . . . . . . . . 1 . . . . . . . . . . . Manual 95 | . 16 . . 16 19 8 3 1 12 1 . 7 5 . . . . 2 1 4 Terminals 145 | . 16 . . 13 28 14 4 1 36 1 . 10 3 . . . . 3 12 4 Fabricators 6 | . . . . . . . . . . . . . . . . . . . 3 3 Repair Stations 22 | . . . . 2 4 . . . . . . . 4 . . . . 4 8 . Recycling Units 19 | . 1 . . 1 . 15 . 2 . . . . . . . . . . . . Scanalyzers 12 | . . . . 2 . . 6 1 . . . . . . . . . . . 3 Garrison Access 4 | . . . . . 1 . . . . . . . . . . . . 2 1 . Terminal Hacks 72 | . 2 . 3 4 9 8 1 1 21 . . 1 . 1 3 17 . . 1 . Record 12 | . . . 3 . . . . . 2 . . . . . 2 5 . . . . Part Schematic 14 | . 1 . . 1 . 1 1 . 6 . . . . . . 4 . . . . Robot Analysis 16 | . . . . 3 2 2 . . 5 . . . . . . 4 . . . . Prototype ID Bank 10 | . 1 . . . 1 3 . . 1 . . . . . . 4 . . . . Open Door 8 | . . . . . 1 . . 1 4 . . . . 1 1 . . . . . Level Access Points 1 | . . . . . . . . . . . . 1 . . . . . . . . Alert Level 2 | . . . . . 1 . . . 1 . . . . . . . . . . . Locate Traps 2 | . . . . . 2 . . . . . . . . . . . . . . . Dispatch Records 1 | . . . . . . . . . 1 . . . . . . . . . . . Maintenance Status 1 | . . . . . 1 . . . . . . . . . . . . . . . Hauler Manifests 1 | . . . . . 1 . . . . . . . . . . . . . . . Zone Layout 2 | . . . . . . . . . 1 . . . . . . . . . 1 . Release Object 2 | . . . . . . 2 . . . . . . . . . . . . . . Fabricator Hacks 3 | . . . . . . . . . . . . . . . . . . . 1 2 Network Status 2 | . . . . . . . . . . . . . . . . . . . 1 1 Load Schematic 1 | . . . . . . . . . . . . . . . . . . . . 1 Repair Station Hacks 8 | . . . . 2 4 . . . . . . . . . . . . 1 1 . Scan Component 5 | . . . . 1 2 . . . . . . . . . . . . 1 1 . Repair 3 | . . . . 1 2 . . . . . . . . . . . . . . . Recycling Unit Hacks 4 | . . . . . . 4 . . . . . . . . . . . . . . Retrieve Components 4 | . . . . . . 4 . . . . . . . . . . . . . . Scanalyzer 5 | . . . . . . . 5 . . . . . . . . . . . . . Insert Component 2 | . . . . . . . 2 . . . . . . . . . . . . . Analyze 3 | . . . . . . . 3 . . . . . . . . . . . . . Garrison Access Hacks 2 | . . . . . 1 . . . . . . . . . . . . . 1 . Seal Access 2 | . . . . . 1 . . . . . . . . . . . . . 1 . Unauthorized Hacks 27 | . 6 . . 3 5 7 1 1 1 . . 2 1 . . . . . . . Terminals 14 | . 5 . . 1 5 . . . 1 . . 2 . . . . . . . . Botnet 7 | . 1 . . 1 2 . . . 1 . . 2 . . . . . . . . Operators 2 | . 1 . . . 1 . . . . . . . . . . . . . . . Skim 5 | . 3 . . . 2 . . . . . . . . . . . . . . . Fabricators . | . . . . . . . . . . . . . . . . . . . . . Repair Stations 1 | . . . . . . . . . . . . . 1 . . . . . . . Patch 1 | . . . . . . . . . . . . . 1 . . . . . . . Recycling Units 9 | . 1 . . 1 . 7 . . . . . . . . . . . . . . Tunnel 9 | . 1 . . 1 . 7 . . . . . . . . . . . . . . Scanalyzers 3 | . . . . 1 . . 1 1 . . . . . . . . . . . . Extract 3 | . . . . 1 . . 1 1 . . . . . . . . . . . . Garrison Access . | . . . . . . . . . . . . . . . . . . . . . Data Cores Recovered 7 | . . . . 2 1 . 1 . . . . 1 . . . . . . 2 . Used 3 | . . . . 1 . . . . . . . 1 . . . . . . 1 . Hacking Detections 56 | . 6 . . 7 8 5 2 1 9 1 . 3 1 . . . . 4 7 2 Full Trace Events 6 | . 1 . . 1 . 1 . . 1 . . . 1 . . . . 1 . . Feedback Events . | . . . . . . . . . . . . . . . . . . . . . Feedback Blocked . | . . . . . . . . . . . . . . . . . . . . . Robot Schematics Acquired . | . . . . . . . . . . . . . . . . . . . . . Robots Built . | . . . . . . . . . . . . . . . . . . . . . Authchips . | . . . . . . . . . . . . . . . . . . . . . Time . | . . . . . . . . . . . . . . . . . . . . . Total Robot Build Rating . | . . . . . . . . . . . . . . . . . . . . . Part Schematics Acquired 38 | . 1 . . 5 . 1 16 5 6 . . . . . . 4 . . . . Parts Built . | . . . . . . . . . . . . . . . . . . . . . Authchips . | . . . . . . . . . . . . . . . . . . . . . Time . | . . . . . . . . . . . . . . . . . . . . . Total Part Build Rating . | . . . . . . . . . . . . . . . . . . . . . Parts Repaired 3 | . . . . 1 2 . . . . . . . . . . . . . . . Time 120 | . . . . 44 76 . . . . . . . . . . . . . . . Parts Recycled . | . . . . . . . . . . . . . . . . . . . . . Recycled Matter . | . . . . . . . . . . . . . . . . . . . . . Retrieved Matter . | . . . . . . . . . . . . . . . . . . . . . Retrieved Components 6 | . . . . . . 6 . . . . . . . . . . . . . . Parts Scanalyzed 2 | . . . . . . . 2 . . . . . . . . . . . . . Part Schematics Acquired 2 | . . . . . . . 2 . . . . . . . . . . . . . Parts Damaged . | . . . . . . . . . . . . . . . . . . . . . Bothacking | -11 -10 -10 -10 -8 -8 -8 -6 -5 -5 -5 -5 -5 -4 -4 -4 -4 -3 -3 -3 -2 ------------ Run | Yrd Mat Min Sub Mat Sto Rec Fac Fac Ext Cet Arc Hub Fac Upp Upp Zhi Pro Res Tes Res Used RIF Installer . | . . . . . . . . . . . . . . . . . . . . . Robots Hacked . | . . . . . . . . . . . . . . . . . . . . . Non-combat . | . . . . . . . . . . . . . . . . . . . . . Combat . | . . . . . . . . . . . . . . . . . . . . . Robot Hacks Applied . | . . . . . . . . . . . . . . . . . . . . . Relay Couplers Released . | . . . . . . . . . . . . . . . . . . . . . Fabnet Peak Effective % . | . . . . . . . . . . . . . . . . . . . . . Robots Rewired 25 | . . . . . . 10 . . 13 . . . . . . . . . 2 . Allies Hacked . | . . . . . . . . . . . . . . . . . . . . . Hacks Repelled . | . . . . . . . . . . . . . . . . . . . . . Allies | -11 -10 -10 -10 -8 -8 -8 -6 -5 -5 -5 -5 -5 -4 -4 -4 -4 -3 -3 -3 -2 -------- Run | Yrd Mat Min Sub Mat Sto Rec Fac Fac Ext Cet Arc Hub Fac Upp Upp Zhi Pro Res Tes Res Total Allies 37 | . . 2 . . . 10 . . 18 5 . . . . . . . . 2 . Largest Group 13 | . . 2 . . . 10 1 . 11 13 8 6 . . . . . . 2 . Highest-Rated Group 863 | . . 46 . . . 190 16 . 483 863 641 457 . . . . . . 158 . Highest-Rated Ally 159 | . . 31 . . . 27 16 . 159 159 159 96 . . . . . . 79 . Total Orders 31 | . . . . . . 2 . . 5 . . . . . . . 8 7 9 . STAY 4 | . . . . . . 1 . . 3 . . . . . . . . . . . ROAM 1 | . . . . . . . . . . . . . . . . . 1 . . . FOLLOW 3 | . . . . . . 1 . . 2 . . . . . . . . . . . EXPLORE 7 | . . . . . . . . . . . . . . . . . 2 2 3 . RETURN 16 | . . . . . . . . . . . . . . . . . 5 5 6 . Ally Attacks 257 | . . 3 . . . 12 4 . 53 67 31 79 . . . . . . 8 . Total Damage 7399 | . . 21 . . . 228 48 . 1086 1330 1113 3128 . . . . . . 445 . Kills 46 | . . . . . . 4 . . 9 10 4 17 . . . . . . 2 . Allies Corrupted 3 | . . . . . . . . . . . . 1 . . . . . 2 . . Allies Melted . | . . . . . . . . . . . . . . . . . . . . . Intel | -11 -10 -10 -10 -8 -8 -8 -6 -5 -5 -5 -5 -5 -4 -4 -4 -4 -3 -3 -3 -2 ------- Run | Yrd Mat Min Sub Mat Sto Rec Fac Fac Ext Cet Arc Hub Fac Upp Upp Zhi Pro Res Tes Res Active Infowar (turns) 11874 | 7 462 632 1661 1058 828 250 508 187 69 . . 219 201 888 502 217 925 683 1737 840 Sensors 6765 | . . . . . 700 250 . . . . . . 201 888 502 217 925 683 1737 662 Seismic 4710 | 7 462 632 1661 838 126 . 508 187 69 . . 219 1 . . . . . . . Machine Analysis 1095 | . . . . 1038 57 . . . . . . . . . . . . . . . Jamming 178 | . . . . . . . . . . . . . . . . . . . . 178 ECM 90 | . . . . . . . . 90 . . . . . . . . . . . . Robot Analysis Total 16 | . . . . 3 2 2 . . 5 . . . . . . 4 . . . . Derelict Logs Recovered 4 | . . 1 2 . . . . . . . . . . . 1 . . . . . Drone Launches 33 | . . . . . . . . . . . . . . . . . 14 10 9 . Drone Recoveries 28 | . . . . . . . . . . . . . . . . . 11 8 9 . Exploration | -11 -10 -10 -10 -8 -8 -8 -6 -5 -5 -5 -5 -5 -4 -4 -4 -4 -3 -3 -3 -2 ------------- Run | Yrd Mat Min Sub Mat Sto Rec Fac Fac Ext Cet Arc Hub Fac Upp Upp Zhi Pro Res Tes Res Turns Passed 20256 | 73 971 1275 2107 1058 1298 1884 824 237 1235 478 216 412 278 1193 527 220 1077 724 2537 1632 Spaces Moved 11175 | 36 471 330 1214 466 576 1019 537 233 760 340 150 220 158 723 381 152 641 531 1324 913 Core 2 | 2 . . . . . . . . . . . . . . . . . . . . Treads 1220 | . . . . 397 542 281 . . . . . . . . . . . . . . Legs 7295 | 34 471 330 461 . 34 663 482 . . . . . 155 723 381 152 641 531 1324 913 Wheels 897 | . . . 753 69 . 75 . . . . . . . . . . . . . . Hover 1472 | . . . . . . . 55 233 534 277 150 220 3 . . . . . . . Flight 289 | . . . . . . . . . 226 63 . . . . . . . . . . Fastest Speed 50 | 50 120 190 95 95 158 87 88 88 55 108 108 108 123 123 123 123 123 116 103 103 Average Speed 129 | 116 168 190 137 155 161 131 97 88 91 108 108 135 137 123 123 123 123 116 125 135 Slowest Speed 360 | 120 190 190 260 240 360 180 118 88 113 113 108 166 193 123 123 123 123 232 232 342 Overloaded Moves 188 | . . . . . . . . . . . . . . . . . . . 188 . Propulsion Burnouts . | . . . . . . . . . . . . . . . . . . . . . Robots Hopped . | . . . . . . . . . . . . . . . . . . . . . Potential Cave-ins . | . . . . . . . . . . . . . . . . . . . . . Cave-ins Triggered 1 | . . . . . . . . . . . . . . . . . . . . 1 Teleports 1 | . . . . . . . . . . . . . . . . . . . . 1 Exploration Rate (%) 53 | 4 87 55 78 37 80 92 13 8 83 71 83 37 5 69 53 60 75 23 83 28 Regions Visited 20 Branch Regions 13 Pre-discovered Areas 14 | . 1 . 2 1 . 7 . . . . . . . . . 3 . . . . Known Exits Taken 10 | . . . . 1 1 . . . . . . 1 1 1 1 1 1 1 1 . Unknown Exits Taken 10 | 1 1 1 1 . . 1 1 1 1 1 1 . . . . . . . . . Scrap Searched 10 | . . 1 5 . . . . . . . . . . . . . 4 . . . Spaces Dug 262 | . . . 1 7 1 17 . . . . . 19 20 32 42 . . 5 39 79 Terrain Destroyed 1290 | . 3 30 2 9 1 17 20 . 33 14 2 45 43 103 92 . 88 7 381 400 Melee 25 | . . . . 7 1 . . . . . . 1 . 3 . . . 2 9 2 Projectile 233 | . . . 2 2 . . . . 15 14 2 26 7 80 10 . 33 5 20 17 AOE 1032 | . 3 30 . . . 17 20 . 18 . . 18 36 20 82 . 55 . 352 381 Terrain Rammed . | . . . . . . . . . . . . . . . . . . . . . Walls Destroyed . | . . . . . . . . . . . . . . . . . . . . . Machines Disabled . | . . . . . . . . . . . . . . . . . . . . . Actions | -11 -10 -10 -10 -8 -8 -8 -6 -5 -5 -5 -5 -5 -4 -4 -4 -4 -3 -3 -3 -2 --------- Run | Yrd Mat Min Sub Mat Sto Rec Fac Fac Ext Cet Arc Hub Fac Upp Upp Zhi Pro Res Tes Res Total 15568 | 54 583 938 1530 698 850 1536 766 258 1213 415 181 295 200 921 420 172 870 612 1862 1194 Wait 2313 | 4 44 565 179 96 134 402 151 11 135 17 12 22 19 77 18 . 134 26 215 52 Move 11155 | 35 470 329 1213 465 575 1018 536 232 759 339 149 219 157 722 380 151 640 530 1323 913 Hop . | . . . . . . . . . . . . . . . . . . . . . Pick Up 149 | 3 13 4 11 19 16 5 8 2 4 7 . 1 . 3 2 1 12 10 14 14 Fast Attach 113 | 5 3 1 7 18 14 1 5 . 7 6 2 5 1 . . 5 4 1 20 8 Attach 64 | 2 . 2 8 5 4 . 6 . 1 2 . 1 1 3 . . 3 2 6 18 Detach 35 | . 1 . . 1 3 5 3 . 1 3 . 1 1 1 . . 1 1 7 6 Swap 219 | . 10 4 25 8 18 6 11 4 7 2 . 9 8 16 5 2 19 15 45 5 Drop 213 | . 8 5 13 22 27 13 8 2 12 12 1 4 . 3 1 5 13 9 22 33 Fire 762 | 5 34 25 74 52 32 23 34 6 44 18 6 32 12 93 11 . 37 12 121 91 Melee 191 | . . . . 10 22 . 1 1 26 1 11 1 . 3 3 8 7 5 72 20 Ram 1 | . . . . . . . . . 1 . . . . . . . . . . . Kick 3 | . . 3 . . . . . . . . . . . . . . . . . . Crush 7 | . . . . 2 5 . . . . . . . . . . . . . . . Escape Stasis 68 | . . . . . . . . . 36 . . . . . . . . . . 32 Rewire 259 | . . . . . . 63 . . 180 . . . . . . . . . 16 . Trap . | . . . . . . . . . . . . . . . . . . . . . Miscellaneous 16 | . . . . . . . 3 . . 8 . . 1 . . . . 1 1 2 Route ------- -11/Scrapyard -10/Materials (discovered 4 exits: [*Mat x3] / [*Min]) -10/Mines (discovered 3 exits: [*Mat x2] / *Sub) -10/Subcaves (discovered 2 exits: *Mat x2) -8/Materials (discovered 4 exits: *Fac x2 / *Sto x2) -8/Storage -8/Recycling -6/Factory -5/Factory -5/Extension (discovered 2 exits: *Fac / *Cet) -5/Cetus (discovered 2 exits: *Fac / [*Arc]) -5/Archives (discovered 3 exits: *Fac / *Hub x2) -5/Hub_04(d) (discovered 4 exits: *Fac x4) -4/Factory -4/Upper Caves -4/Upper Caves -4/Zhirov -3/Proximity Caves -3/Research -3/Testing -2/Research History --------- Turn | Location | Event 2 | -11/Scrapyard | Met Revision 17 5 | -11/Scrapyard | Discovered new exit (range 16) 74 | -11/Scrapyard | Entered Materials 282 | -10/Materials | Discovered new exit (range 14) 298 | -10/Materials | Discovered new exit (range 13) 331 | -10/Materials | Build established: Mutant 495 | -10/Materials | Discovered new exit (range 16) 691 | -10/Materials | Discovered new exit (range 9) 874 | -10/Materials | Derelicts attacked the area 1045 | -10/Materials | Entered Mines 1133 | -10/Mines | Met a Derelict bent on vengeance 1562 | -10/Mines | Joined a pair of Derelicts in attacking an 0b10 outpost 1735 | -10/Mines | Learned 4 Materials zone layouts 1750 | -10/Mines | Discovered new exit (range 9) 1795 | -10/Mines | Assembled infested the area 1850 | -10/Mines | Discovered new exit (range 6) 2292 | -10/Mines | Discovered new exit (range 6) 2320 | -10/Mines | Entered Subcaves 2436 | -10/Subcaves | Visited Clippyterm 2442 | -10/Subcaves | Learned location of Deep Caves (-6) 3238 | -10/Subcaves | Core integrity fell below 50% 3459 | -10/Subcaves | Shifting Twisted Machinery released Sub. Laser 3473 | -10/Subcaves | Shifting Twisted Machinery released Mak. Shrapnel Gun 3534 | -10/Subcaves | Learned Materials interactive machine intel 3664 | -10/Subcaves | Build established: Scavenger-Mutant 3750 | -10/Subcaves | Disturbed a concealed Subdweller 4055 | -10/Subcaves | Core integrity fell below 20% 4412 | -10/Subcaves | Discovered new exit (range 11) 4425 | -10/Subcaves | Discovered new exit (range 15) 4427 | -10/Subcaves | Entered Materials 4427 | -8/Materials | Evolved 4 slots: Propulsion x1, Utility x2, Weapon x1 4428 | -8/Materials | Identified exit to Storage 4428 | -8/Materials | Identified exit to Factory 4429 | -8/Materials | Loaded intel: 19 interactive machine locations 4500 | -8/Materials | Repaired Mak. Power Source 4820 | -8/Materials | Discovered exit to Storage (range 15) 4924 | -8/Materials | Build established: Scavenger-Tank 5253 | -8/Materials | Build established: Scavenger-Mutant 5336 | -8/Materials | Discovered exit to Factory (range 4) 5485 | -8/Materials | Entered Storage 6147 | -8/Storage | Repaired Arm. Treads 6617 | -8/Storage | Used back door to open Recycling access 6617 | -8/Storage | Discovered new exit (range 5) 6742 | -8/Storage | Repaired Carbon-fiber Leg 6781 | -8/Storage | Identified exit to Recycling 6783 | -8/Storage | Entered Recycling 7400 | -8/Recycling | Entered Scraplab 7408 | -8/Recycling | Found Prototype Device 7408 | -8/Recycling | Identified Scrap Engine 7437 | -8/Recycling | Build established: Commander-Gunner 8027 | -8/Recycling | Build established: Commander-Construct 8469 | -8/Recycling | Discovered new exit (range 7) 8667 | -8/Recycling | Entered Factory 8667 | -6/Factory | Accompanied by 1 ally 8667 | -6/Factory | Evolved 4 slots: Power x1, Utility x3 8982 | -6/Factory | Build established: Construct 9017 | -6/Factory | Search patrols dispatched 9429 | -6/Factory | Discovered new exit (range 10) 9491 | -6/Factory | Entered another Factory area 9491 | -5/Factory | Evolved 2 slots: Power x1, Propulsion x1 9699 | -5/Factory | Discovered new exit (range 6) 9728 | -5/Factory | Entered Extension 9785 | -5/Extension | Rescued a captive Derelict 10020 | -5/Extension | Central database locked down 10189 | -5/Extension | Build established: Commander-Construct 10385 | -5/Extension | Spotted B-75 Beast 10409 | -5/Extension | Destroyed B-75 Beast 10426 | -5/Extension | Spotted B-75 Beast 10440 | -5/Extension | Destroyed B-75 Beast 10453 | -5/Extension | Disrupted transfer network 10469 | -5/Extension | Lost 4 allies 10600 | -5/Extension | Rescued a captive Derelict 10601 | -5/Extension | Rescued a captive Derelict 10651 | -5/Extension | Rescued A7 10719 | -5/Extension | Build established: Construct 10830 | -5/Extension | Rescued a captive Derelict 10863 | -5/Extension | Discovered new exit (range 10) 10866 | -5/Extension | Disrupted transfer network 10873 | -5/Extension | Discovered new exit (range 7) 10963 | -5/Extension | Entered Cetus 10963 | -5/Cetus | Accompanied by 11 allies (A7) 10968 | -5/Cetus | Acquired a Cetus Manufacturing Module code from A7 10979 | -5/Cetus | Spotted Cetus Guard 10980 | -5/Cetus | Spotted Cetus Guard 10981 | -5/Cetus | Spotted Cetus Guard 10982 | -5/Cetus | Spotted Cetus Guard 10995 | -5/Cetus | Allies destroyed Cetus Guard 10996 | -5/Cetus | Allies destroyed Cetus Guard 11000 | -5/Cetus | Allies destroyed Cetus Guard 11037 | -5/Cetus | Lost 3 allies 11050 | -5/Cetus | Started Cetus Manufacturing Module 11075 | -5/Cetus | Manufactured an Enhanced Grunt 11100 | -5/Cetus | Manufactured an Enhanced Grunt 11125 | -5/Cetus | Manufactured an Enhanced Grunt 11150 | -5/Cetus | Manufactured an Enhanced Grunt 11175 | -5/Cetus | Manufactured an Enhanced Grunt 11177 | -5/Cetus | Discovered new exit (range 16) 11197 | -5/Cetus | Spotted Cetus Guard 11198 | -5/Cetus | Spotted Cetus Guard 11204 | -5/Cetus | Spotted Cetus Guard 11204 | -5/Cetus | Spotted Cetus Guard 11221 | -5/Cetus | Allies destroyed Cetus Guard 11231 | -5/Cetus | Allies destroyed Cetus Guard 11231 | -5/Cetus | Allies destroyed Cetus Guard 11232 | -5/Cetus | Destroyed Cetus Guard 11243 | -5/Cetus | Discovered new exit (range 15) 11248 | -5/Cetus | Met Revision 17 11259 | -5/Cetus | Lost 5 allies 11330 | -5/Cetus | Escorted A7 to Cetus Mainframe 11441 | -5/Cetus | Entered Archives 11441 | -5/Archives | Accompanied by 8 allies (A7) 11446 | -5/Archives | Received a hacking code to weaken MAIN.C 11519 | -5/Archives | Discovered new exit (range 15) 11520 | -5/Archives | Build established: Scavenger-Construct 11532 | -5/Archives | Discovered new exit (range 14) 11572 | -5/Archives | Discovered new exit (range 12) 11657 | -5/Archives | Entered Hub_04(d) 11657 | -5/Hub_04(d) | Accompanied by 6 allies 11825 | -5/Hub_04(d) | Network Hub disabled 11957 | -5/Hub_04(d) | First assault squad dispatched 11984 | -5/Hub_04(d) | Identified exit to Factory 12063 | -5/Hub_04(d) | Spotted Lightning 12067 | -5/Hub_04(d) | Spotted Lightning 12069 | -5/Hub_04(d) | Entered Factory 12069 | -4/Factory | Evolved 2 slots: Propulsion x1, Utility x1 12183 | -4/Factory | Discovered new exit (range 5) 12198 | -4/Factory | Build established: Construct 12202 | -4/Factory | Identified exit to Upper Caves 12319 | -4/Factory | First assault squad dispatched 12347 | -4/Factory | Entered Upper Caves 12474 | -4/Upper Caves | Encountered a Warlord checkpoint 12633 | -4/Upper Caves | Spotted B-86 Titan 12810 | -4/Upper Caves | Destroyed B-86 Titan 13082 | -4/Upper Caves | Attracted the attention of an 0b10 checkpoint 13472 | -4/Upper Caves | Discovered new exit (range 13) 13538 | -4/Upper Caves | Identified exit to Upper Caves 13540 | -4/Upper Caves | Entered another Upper Caves area 13788 | -4/Upper Caves | Entered a destroyed Warlord outpost 13968 | -4/Upper Caves | Attracted the attention of an 0b10 checkpoint 14002 | -4/Upper Caves | Learned Research non-interactive machine intel 14019 | -4/Upper Caves | Discovered new exit (range 9) 14032 | -4/Upper Caves | Identified exit to Zhirov 14067 | -4/Upper Caves | Entered Zhirov 14067 | -4/Zhirov | Discovered new exit (range 3) 14090 | -4/Zhirov | Met Zhirov 14114 | -4/Zhirov | Learned location of Command (-1) 14125 | -4/Zhirov | Zhirov requested help retrieving the SGEMP Prototype 14145 | -4/Zhirov | Found Alien Artifact 14161 | -4/Zhirov | Found Alien Artifact 14161 | -4/Zhirov | Identified Integrated Dissipator 14161 | -4/Zhirov | Installed Integrated Dissipator, increased core heat dissipation (+20) 14283 | -4/Zhirov | Identified exit to Proximity Caves 14287 | -4/Zhirov | Entered Proximity Caves 14427 | -3/Proximity Caves | Spotter reported a threat 14629 | -3/Proximity Caves | Spotter reported a threat 14696 | -3/Proximity Caves | Unaware initiated a cargo recovery operation 14890 | -3/Proximity Caves | Found Prototype Device 14890 | -3/Proximity Caves | Identified Exp. Thermal Shield 14896 | -3/Proximity Caves | Found Prototype Processor 14896 | -3/Proximity Caves | Identified Exp. Core Analyzer 14991 | -3/Proximity Caves | Spotter reported a threat 15075 | -3/Proximity Caves | Spotter reported a threat 15157 | -3/Proximity Caves | Spotter reported a threat 15194 | -3/Proximity Caves | Found Exp. Core Analyzer 15237 | -3/Proximity Caves | Spotter reported a threat 15304 | -3/Proximity Caves | Spotter reported a threat 15342 | -3/Proximity Caves | Discovered new exit (range 6) 15346 | -3/Proximity Caves | Identified exit to Research 15364 | -3/Proximity Caves | Entered Research 15364 | -3/Research | Accompanied by 2 allies 15364 | -3/Research | Evolved 2 slots: Propulsion x2 15365 | -3/Research | Loaded intel: 74 non-interactive machine locations 15564 | -3/Research | Revision forces began assault on 0b10 15603 | -3/Research | Met up with Revision 17++ 15759 | -3/Research | Spotted B-86 Titan 16064 | -3/Research | Research terminal network offline 16077 | -3/Research | Discovered new exit (range 9) 16085 | -3/Research | Identified exit to Testing 16088 | -3/Research | Entered Testing 16088 | -3/Testing | Accompanied by 2 allies 16102 | -3/Testing | Found Prototype Energy Cannon 16315 | -3/Testing | Found Prototype Ballistic Cannon 16315 | -3/Testing | Identified Omega Cannon 16338 | -3/Testing | Search patrols dispatched 16410 | -3/Testing | Found Prototype Energy Cannon 16465 | -3/Testing | Spotted Superbehemoth 16578 | -3/Testing | Build established: Mutant 16726 | -3/Testing | System corruption reached 10% 16843 | -3/Testing | Spotted Striker 16844 | -3/Testing | Spotted Striker 16857 | -3/Testing | Destroyed Striker 16864 | -3/Testing | Destroyed Striker 16901 | -3/Testing | Spotted Alpha 7 16953 | -3/Testing | Destroyed Alpha 7 17119 | -3/Testing | Found Prototype Hackware 17153 | -3/Testing | Stole the SGEMP Prototype 17338 | -3/Testing | First assault squad dispatched 17483 | -3/Testing | Destroyed 8 combat bots 17633 | -3/Testing | Garrison activated, responded to threat 17740 | -3/Testing | Found Prototype Device 17740 | -3/Testing | Identified 2N-1CE's Frost Array 17906 | -3/Testing | Spotted PP-K5213C9NP6 18033 | -3/Testing | System corruption reached 30% 18071 | -3/Testing | Destroyed PP-K5213C9NP6 18088 | -3/Testing | Lost 3 parts (2u1w) 18323 | -3/Testing | Build established: Construct 18381 | -3/Testing | Identified Potential Cannon 18465 | -3/Testing | Found Portable AFG 18523 | -3/Testing | Discovered new exit (range 4) 18525 | -3/Testing | Identified exit to Research 18528 | -3/Testing | Spotted Alpha 7 18531 | -3/Testing | Destroyed Alpha 7 18562 | -3/Testing | Rewired YF-UXF(K) 18565 | -3/Testing | Rewired JB-X39(K) 18579 | -3/Testing | Spotted ZK-87P(K) 18581 | -3/Testing | P-80 Master assimilated allied JB-X39(K) 18582 | -3/Testing | Spotted JB-X39(K) 18595 | -3/Testing | Destroyed JB-X39(K) 18625 | -3/Testing | Entered Research 18625 | -2/Research | Evolved 2 slots: Utility x2 18627 | -2/Research | Destroyed 10 combat bots 18690 | -2/Research | Found Quantum Capacitor 18887 | -2/Research | Build established: Mutant 19103 | -2/Research | Found Prototype Launcher 19127 | -2/Research | Found Unknown Device 19127 | -2/Research | Identified Launcher Loader 19289 | -2/Research | Found Hvy. Reactive Plating 19295 | -2/Research | Found Hvy. Reactive Plating 19391 | -2/Research | Spotted B-90 Cyclops 19577 | -2/Research | High security lockdown imminent 19601 | -2/Research | Found Fusion Bomb Launcher 19657 | -2/Research | High security lockdown engaged 19940 | -2/Research | Spotted Investigator 19945 | -2/Research | Scanned by Researcher 19951 | -2/Research | Destroyed Investigator 19987 | -2/Research | Crushed by falling debris 19987 | -2/Research | System corruption reached 10% 20005 | -2/Research | Identified Ragnarok Missile Launcher 20024 | -2/Research | Identified Disintegrator 20038 | -2/Research | Destroyed 36 combat bots 20043 | -2/Research | Lost 8 parts (3n4u1w) 20051 | -2/Research | Identified Transdimensional Reconstructor 20051 | -2/Research | Warped through subspace 20052 | -2/Research | Identified System Mapper 20186 | -2/Research | Spotted Striker 20218 | -2/Research | Spotted Investigator 20237 | -2/Research | Spotted Striker 20239 | -2/Research | Released all parts (9) 20240 | -2/Research | Core integrity fell below 50% 20252 | -2/Research | Core integrity fell below 20% 20255 | -2/Research | System corruption reached 30% 20257 | -2/Research | Destroyed by G-73 Enforcer with Phase Gun Last Messages --------------- 20256_ L-61 Swordsman stasis bubble strength at 50. 20256_ Striker stasis bubble strength at 90. 20256_ P-80 Master resets B-74 Champion, system corruption cleaned. 20256_ Striker stasis bubble strength at 80. 20256_ M-36 Artificer stasis bubble strength at 20. 20256_ Stasis bubble strength at 92. 20257_ L-61 Swordsman stasis bubble strength at 35. 20257_ Striker stasis bubble strength at 85. 20257_ P-80 Master stasis bubble strength at 172. 20257_ Striker stasis bubble strength at 75. 20257_ M-36 Artificer stasis bubble strength at 10. 20257_ Stasis bubble strength at 86. 20257_ Investigator stasis bubble strength at 119. Map ----- +----------------------------------------------------+ | ?????????????????????????????????????????????????? | | ?????????????????????????????????????????????????? | | ?????????????????????????????????????????????????? | | ????????????????????????????????????####?????????? | | ??????????????????################? """"?????????? | | ??????????????????# ! # #? """"?????????? | | ??????????????????# # # """" ????????? | | ??????????????????# # # """" #??????? | | ??????????????????# + + #??????? | | ??????????????????# # # #??????? | | ??????????????????# ]] # # #??????? | | ??????????????????# # #? ! #??????? | | ??????????????????# # #? ! #??????? | | ??????????????????########### ###########?????? | | ????????????????????????????# # #?????? | | ????????????????????????????# + ! #?????? | | ????????????????????????????# # #?????? | | ????????????????????????????# K # #?????? | | ??????????????????###########m # [ #?????? | | ??????????????????# c K # #?????? | | ??????????????????# = lp b%% # #?????? | | ??????????????????# " i bg # #?????? | | ??????????????????# "" g gpgg ###########?????? | | ??????????????????# "" bgb%%[ #???????????????? | | ??????????????????# lblg % p #??########?????? | | ??????????????????# ! !@l b #? #?????? | | ??????????????????# ibb# #? ! #?????? | | ??????????????????####### # #?????? | | ???????????????????# # "# """ ??????? | | ???????????????????# + %+ """ ??????? | | ???????????????????# # # """ ??????? | | ???????????????????# # # #?????? | | ???????????????????# !|| # #? #?????? | | ???????????????????# # #?#########?????? | | ???????????????????# # #???????????????? | | ???????????????????# # #???????????????? | | ???????????????????# # +???????????????? | | ???????????????????#####+#### #???????????????? | | ???????????????????????# #??# #???????????????? | | ???????##########??????# #??# #???????????????? | | ???????# #??????# #??# #???????????????? | | ???????# #??????# #??# #???????????????? | | ???????# """ #????### #### #???????????????? | | ???????# """ #????# #???????????????? | | ???????# """ #????# #???????????????? | | ???????# """ ###### #???????????????? | | ???????# """ + #???????????????? | | ???????# ############# #???????????????? | | ???????# #???????????# #???????????????? | | ???????#+##+################# #########+##????? | +----------------------------------------------------+ Best States ------------- Heat Dissipation 169 Energy Generation 76 Energy Capacity 1592 Matter Stores 300 Matter Capacity 300 Sight Range 16 Robot Scan Range 16 Terrain Scan Density 10 ECM Strength 2 Jamming Range 12 Power Amplification 40 Armor Coverage 600 Resistance: KI 40 Resistance: TH 30 Evasion (%) 70 Targeting Accuracy 8 Target Analysis 8 Core Analysis 8 Recoil Reduction 3 Energy Filtering 30 Kinecelleration 40 Offensive Hacking 42 Item Schematics ----------------- Lrg. Storage Unit | -10/Materials | Hacked VSS Leg | -8/Materials | Hacked Sml. Matter Pod | -8/Materials | Extracted Hrd. Medium Armor Plating | -8/Materials | Extracted Actuator Array | -8/Materials | Extracted Maul | -8/Materials | Extracted Fission Core | -8/Recycling | Hacked Multitool | -6/Factory | Scanalyzed Enh. Autogun | -6/Factory | Scanalyzed Imp. Titanium Leg | -6/Factory | Extracted EM Shield | -6/Factory | Extracted Scatter Rocket Array | -6/Factory | Extracted Phase Cannon | -6/Factory | Extracted Imp. Sensor Array | -6/Factory | Extracted Matter Compressor | -6/Factory | Extracted Hcp. Matter Pod | -6/Factory | Extracted Plasma Cannon | -6/Factory | Extracted Target Analyzer | -6/Factory | Extracted Med. Battery | -6/Factory | Extracted Imp. Particle Charger | -6/Factory | Extracted Propulsion Shielding | -6/Factory | Extracted Gravmag Array | -6/Factory | Extracted Imp. Force Field | -6/Factory | Hacked Hpw. Shock Rifle | -5/Factory | Extracted Adv. Weight Redist. System | -5/Factory | Extracted Power Sword | -5/Factory | Extracted Machine Analyzer | -5/Factory | Extracted Gyrokinetic Inverter | -5/Factory | Extracted Hvy. Reactive Plating | -5/Extension | Hacked Med. Armored Exoskeleton | -5/Extension | Hacked Quantum Rifle | -5/Extension | Hacked Hvy. Phase Cannon | -5/Extension | Hacked Adv. Field Recycling Unit | -5/Extension | Hacked Adv. Corruption Screen | -5/Extension | Hacked Assault Drone Bay | -4/Zhirov | Free Exp. Heat Sink | -4/Zhirov | Free Exp. Optical Array | -4/Zhirov | Free Imp. Arc Thrower | -4/Zhirov | Free Robot Schematics ------------------ None Fabricated ------------ Nothing Repaired ---------- Mak. Power Source | 10% | -8/Materials Arm. Treads | 37% | -8/Storage Carbon-fiber Leg | 57% | -8/Storage Alien Tech Used ----------------- Integrated Dissipator Transdimensional Reconstructor Achievements -------------- Ambidextrous Boltbath Killing Spree Challenges ------------ None Game ------ Seed LargeLargeChainsaw Manual? 0 Play Time 06:26:53 Cumulative 108.4 hours Start 2025.10.01 @ 22:25:24 End 2025.10.03 @ 20:30:18 Sessions 23 Manual Loads 0 Difficulty Rogue Special Mode None Game No. 58 Rogue 53 Adventurer 5 Explorer 0 Win Type - Total 2 Types 2/0/0/0/0/0/0/0/0/0 Lore% 52 Gallery% 56 Achievement% 51 Wizard Run 0 Options --------- Layout 1 ASCII 0 Keyboard 0 Movement Numpad Keybinds 0 Fullscreen 1 Font 24/Smallcaps Map View 50x35 Zoom Use 0% Tactical HUD 1 Map Filters NONE Filters NONE Steam 1 RUN: 7d0d9a3c-71d9-4bdf-be9a-5f904b8b3acb